Workbook

Sheet Startseite
B3: Anleitung zur Benutzung des Weideplaners in Excel:
B5: 1. Den Link zum "Weideplaner AGFF" im Browser aktivieren.
B6: 2. Die Excel-Datei wird dadurch je nach Voreinstellung im Browser entweder unter «Downloads» im Windows-Explorer
B7: gespeichert oder in einem Fenster geöffnet: Datei herunterladen und speichern (nicht öffnen).
B8: 3. Die gespeicherte Excel-Datei im Windows-Explorer anwählen und mit rechter Maustaste anklicken -> «Eigenschaften».
B9: 4. In der Registerkarte «Allgemein» ganz unten bei Sicherheit das Kontrollkästchen «Zulassen» anklicken -> OK (siehe Grafik rechts).
B10: 5. Teilweise muss nach dem Öffnen der Excel-Datei oben noch "Inhalt aktivieren" angewählt werden.
B12: Bei Problemen wenden Sie sich bitte an info@agff.ch.
B13: Der Weideplaner ist eingeschränkt auch in Numbers/ Google Sheets nutzbar.
B16: Wählen Sie unten das Weidesystem, für welches Sie die Weideplanung erstellen möchten:

Sheet Umtriebsweide
A2: Umtriebsweide
A4: 1. Schritt: Tabelle 1 und 2 ausfüllen. Mit einem Klick ins grüne Feld erscheint ein Pfeil, mit dem eine Auswahlliste ausgeklappt werden kann.
A5: Zutreffende Angabe anwählen.
B6: Tabelle 1: | C6: Höhenlage (m ü. M.) | D6: Boden resp. Lage | E6: Klima | F6: Vegetationsbeginn
C7: unter_700 | D7: tiefgründig/gute_Lage | E7: trocken | F7: früh
B9: Tabelle 2: | C9: Tierkategorie | D9: Tagesverzehr (kg TS)
C10: Milchkühe | D10: =VLOOKUP(C10,Daten!Z45:AA52,2,FALSE) -> 14-18
A12: 2. Schritt: Dick umrahmte Felder müssen betriebsspezifisch angepasst werden (Hilfe zu den Tagesverzehren pro Tier: Siehe Tabelle 2).
A13: Durch Anklicken der "?"-Schaltfläche erhalten Sie weitere Informationen zu den entsprechenden Zeilen.
A15: Betriebs- und Standortdaten
C16: Vorweide | D16: Frühlingsweide | E16: Sommerweide | F16: Herbstweide
A17: A | B17: Start Weidephase | C17: =VLOOKUP($C$7&$D$7&$E$7&$F$7,Daten!$AD$6:$AJ$37,7,FALSE) -> 22. Februar | D17: =VLOOKUP($C$7&$D$7&$E$7&$F$7,Daten!$AD$6:$AK$37,8,FALSE) -> 8. April | E17: =VLOOKUP($C$7&$D$7&$E$7&$F$7,Daten!$AD$6:$AL$37,9,FALSE) -> 22. Mai | F17: =VLOOKUP($C$7&$D$7&$E$7&$F$7,Daten!$AD$6:$AM$37,10,FALSE) -> 1. September
A18: B | B18: Graszuwachs (kg TS/ha/Tag) | C18: =VLOOKUP($C$7&$D$7&$E$7&$F$7,Daten!$AD$6:$AF$37,3,FALSE) -> 30 | D18: =VLOOKUP($C$7&$D$7&$E$7&$F$7,Daten!$AD$6:$AG$37,4,FALSE) -> 85 | E18: =VLOOKUP($C$7&$D$7&$E$7&$F$7,Daten!$AD$6:$AH$37,5,FALSE) -> 35 | F18: =VLOOKUP($C$7&$D$7&$E$7&$F$7,Daten!$AD$6:$AI$37,6,FALSE) -> 25
A19: C | B19: Anzahl Tiere | C19: 40 | D19: 40 | E19: 40 | F19: 40
A20: D | B20: Totaler Tagesverzehr pro Tier (kg TS/Tier/Tag) | C20: 16 | D20: 16 | E20: 16 | F20: 16
A21: E | B21: Verzehrsanteil Weide während Vegetationsperiode (%) | C21: 60 | D21: 100 | E21: 100 | F21: 75
A22: F | B22: Verzehr Weidefutter (kg TS/Tier/Tag) = (Futterbedarf - Ergänzungsfütterung) | C22: =C21*C20/100 -> 9.6 | D22: =D21*D20/100 -> 16 | E22: 16 | F22: =F21*F20/100 -> 12
A23: G | B23: Besatzstärke (Tiere/ha) = Graszuwachs / Tagesverzehr Weide = B / F | C23: =C18/C22 -> 3.125 | D23: =D18/D22 -> 5.3125 | E23: 2.1875 | F23: =F18/F22 -> 2.083333333
A24: H | B24: Flächenbedarf pro Phase (ha) = Anzahl Tiere / Besatzstärke = C / G | C24: =C19/C23 -> 12.8 | D24: 7.529411765 | E24: 18.28571429 | F24: =F19/F23 -> 19.2
A25: I | B25: Weideruhezeit (Tage) | C25: 30 | D25: 18 | E25: 28 | F25: 45
A27: Futterdichten | I27: Tabelle 3: In den grünen Feldern gewünschte Einheit auswählen
C28: Vorweide | D28: Frühlingsweide | E28: Sommerweide | F28: Herbstweide | I28: Umrechnung
A29: J | B29: Ziel Abtriebshöhe (kg TS/ha) | C29: 73 | D29: 73 | E29: 193 | F29: 193 | I29: von | J29: cm_RPM | K29: in | L29: kg_TS_pro_ha
A30: K | B30: Ziel Auftriebshöhe (kg TS/ha) = (G * F * I) + J | C30: =(C23*C22*C25) + C29 -> 973 | D30: =(D23*D22*D25) + D29 -> 1603 | E30: =(E23*E22*E25) + E29 -> 1173 | F30: =(F23*F22*F25) + F29 -> 1318 | J30: 3.5 | L30: =VLOOKUP($J$29&$L$29,Daten!$AG$57:$AH$62,2,FALSE) -> 73
A31: L | B31: Nutzbare Grasmasse (kg TS/ha) = Abtriebshöhe - Auftriebshöhe = J - K | C31: =C30-C29 -> 900 | D31: =D30-D29 -> 1530 | E31: =E30-E29 -> 980 | F31: =F30-F29 -> 1125 | I31: * RPM: Rising-Plate-Meter (Platten-Herbometer)
A33: Weideparameter
C34: Vorweide | D34: Frühlingsweide | E34: Sommerweide | F34: Herbstweide
A35: M | B35: Flächenbedarf der Herde pro Tag (ha/Herde/Tag) = 1/ Grasmasse * Anzahl Tiere * Verzehr Weidefutter = 1/ L*C*F | C35: =1/C31*C19*C22 -> 0.4266666667 | D35: =1/D31*D19*D22 -> 0.4183006536 | E35: =1/E31*E19*E22 -> 0.6530612245 | F35: =1/F31*F19*F22 -> 0.4266666667
A36: N | B36: Flächenbedarf pro Tier und Tag (Aren/Tier/Tag) = M / C *100 = Flächenbedarf Herde / Anzahl Tiere * 100 | C36: =C35/C19*100 -> 1.066666667 | D36: =D35/D19*100 -> 1.045751634 | E36: =E35/E19*100 -> 1.632653061 | F36: =F35/F19*100 -> 1.066666667
A37: O | B37: Besatzzeit (Tage) | C37: 2 | D37: 2 | E37: 2 | F37: 2
A38: P | B38: Koppelgrösse (ha) = Flächenbedarf Herde * Besatzzeit = M * O | C38: =C37*C35 -> 0.8533333333 | D38: =D37*D35 -> 0.8366013072 | E38: =E37*E35 -> 1.306122449 | F38: 0.8533333333
A39: Q | B39: Min. benötigte Anzahl Koppeln = Weideruhezeit / Besatzzeit = I / O | C39: =C25/C37 -> 15 | D39: =D25/D37 -> 9 | E39: =E25/E37 -> 14 | F39: =F25/F37 -> 22.5
A41: Koppelplanung
A42: O | B42: Ø Flächenbedarf der Herde pro Tag (ha/Herde/Tag) = Durchschnitt Werte M | C42: =AVERAGE(C35:F35) -> 0.4811738029
A43: P | B43: Koppelgrösse Frühlingsweide (ha) = Flächenbedarf Herde pro Tag im Frühling * Besatzzeit | C43: Koppelgrösse für | D43: =VLOOKUP(C10,Daten!Z45:AB52,3,FALSE) -> 12 Stunden | E43: =VLOOKUP(C10,Daten!Z45:AF52,7,FALSE) -> 0.2091503268
C44: Koppelgrösse für | D44: =VLOOKUP(C10,Daten!Z45:AC52,4,FALSE) -> 3 Tage | E44: =VLOOKUP(C10,Daten!Z45:AG52,8,FALSE) -> 1.254901961
A46: Q | B46: Koppelgrösse ganzjährig (ha) = Ø Flächenbedarf Herde pro Tag * Besatzzeit | C46: Koppelgrösse für | D46: =VLOOKUP(C10,Daten!Z45:AB52,3,FALSE) -> 12 Stunden | E46: =VLOOKUP(C10,Daten!Z45:AH52,9,FALSE) -> 0.2405869014
C47: Koppelgrösse für | D47: =VLOOKUP(C10,Daten!Z45:AC52,4,FALSE) -> 3 Tage | E47: =VLOOKUP(C10,Daten!Z45:AI52,10,FALSE) -> 1.443521409
A49: R | B49: Koppelanzahl >= = Weideruhezeit im Sommer / Besatzzeit + 1 Koppel | C49: Koppelanzahl Besatzzeit | D49: =VLOOKUP(C10,Daten!Z45:AB52,3,FALSE) -> 12 Stunden | E49: =VLOOKUP(C10,Daten!Z45:AJ52,11,FALSE) -> 47
C50: Koppelanzahl Besatzzeit | D50: =VLOOKUP(C10,Daten!Z45:AC52,4,FALSE) -> 3 Tage | E50: =VLOOKUP(C10,Daten!Z45:AK52,12,FALSE) -> 8.666666667

Sheet Kurzrasenweide
A2: Kurzrasenweide
A4: 1. Schritt: Tabelle 1 und 2 ausfüllen. Mit einem Klick ins grüne Feld erscheint ein Pfeil, mit dem eine Auswahlliste ausgeklappt werden kann.
A5: Zutreffende Angabe anwählen.
B6: Tabelle 1: | C6: Höhenlage (m ü. M.) | D6: Boden resp. Lage | E6: Klima | F6: Vegetationsbeginn
C7: unter_700 | D7: tiefgründig/gute_Lage | E7: trocken | F7: früh
B9: Tabelle 2: | C9: Tierkategorie | D9: Tagesverzehr (kg TS)
C10: Milchkühe | D10: =VLOOKUP(C10,Daten!Z45:AA52,2,FALSE) -> 14-18
A12: 2. Schritt: Dick umrahmte Felder müssen betriebsspezifisch angepasst werden (Hilfe zu den Tagesverzehren pro Tier: Siehe Tabelle 2).
A13: Durch Anklicken der "?"-Schaltfläche erhalten Sie weitere Informationen zu den entsprechenden Zeilen.
A15: Betriebs- und Standortdaten
C16: Vorweide | D16: Frühlingsweide | E16: Sommerweide | F16: Herbstweide
A17: A | B17: Start Weidephase | C17: =VLOOKUP($C$7&$D$7&$E$7&$F$7,Daten!$AD$6:$AJ$37,7,FALSE) -> 22. Februar | D17: =VLOOKUP($C$7&$D$7&$E$7&$F$7,Daten!$AD$6:$AK$37,8,FALSE) -> 8. April | E17: =VLOOKUP($C$7&$D$7&$E$7&$F$7,Daten!$AD$6:$AL$37,9,FALSE) -> 22. Mai | F17: =VLOOKUP($C$7&$D$7&$E$7&$F$7,Daten!$AD$6:$AM$37,10,FALSE) -> 1. September
A18: B | B18: Graszuwachs (kg TS/ha/Tag) | C18: =VLOOKUP($C$7&$D$7&$E$7&$F$7,Daten!$AD$6:$AF$37,3,FALSE) -> 30 | D18: =VLOOKUP($C$7&$D$7&$E$7&$F$7,Daten!$AD$6:$AG$37,4,FALSE) -> 85 | E18: =VLOOKUP($C$7&$D$7&$E$7&$F$7,Daten!$AD$6:$AH$37,5,FALSE) -> 35 | F18: =VLOOKUP($C$7&$D$7&$E$7&$F$7,Daten!$AD$6:$AI$37,6,FALSE) -> 25
A19: C | B19: Anzahl Tiere | C19: 40 | D19: 40 | E19: 40 | F19: 40
A20: D | B20: Totaler Tagesverzehr pro Tier (kg TS/Tier/Tag) | C20: 16 | D20: 16 | E20: 16 | F20: 16
A21: E | B21: Verzehrsanteil Weide während Vegetationsperiode (%) | C21: 60 | D21: 100 | E21: 100 | F21: 75
A22: F | B22: Verzehr Weidefutter (kg TS/Tier/Tag) = (Futterbedarf - Ergänzungsfütterung) | C22: =C21*C20/100 -> 9.6 | D22: =D21*D20/100 -> 16 | E22: =E21*E20/100 -> 16 | F22: 12
A23: G | B23: Besatzstärke (Tiere/ha) = Graszuwachs / Tagesverzehr Weide = B / F | C23: =C18/C22 -> 3.125 | D23: =D18/D22 -> 5.3125 | E23: 2.1875 | F23: 2.083333333
A25: Futterdichten
C26: Vorweide | D26: Frühlingsweide | E26: Sommerweide | F26: Herbstweide | I26: Tabelle 3: In den grünen Feldern gewünschte Einheit auswählen
A27: H | B27: Ziel Bestandeshöhe (kg TS/ha) | C27: 193 | D27: 193 | E27: 433 | F27: 433 | I27: Umrechnung
I28: von | J28: cm_RPM | K28: in | L28: kg_TS_pro_ha
A29: Weideparameter | J29: 4 | L29: =VLOOKUP($J$28&$L$28,Daten!$AG$67:$AH$72,2,FALSE) -> 193
C30: Vorweide | D30: Frühlingsweide | E30: Sommerweide | F30: Herbstweide | I30: * RPM: Rising-Plate-Meter (Platten-Herbometer)
A31: I | B31: Flächenbedarf der Herde pro Tag (ha/Herde/Tag) = Verzehr Weidefutter * Anzahl Tiere / Graswachstum = F * C / B | C31: =C22*C19/C18 -> 12.8 | D31: =D22*D19/D18 -> 7.529411765 | E31: 18.28571429 | F31: 19.2
A32: J | B32: Flächenbedarf pro Tier und Tag (Aren/Tier/Tag) = Flächenbedarf Herde / Anzahl Tiere * 100 = I / C * 100 | C32: =C31/C19*100 -> 32 | D32: =D31/D19*100 -> 18.82352941 | E32: 45.71428571 | F32: 48
A34: Zusammenfassung
A35: K | B35: Ø Flächenbedarf der Herde pro Tag (ha/Herde/Tag) = Durchschnitt Werte I | C35: =AVERAGE(C31:F31) -> 14.45378151
A36: L | B36: Ø Flächenbedarf pro Tier und Tag (Aren/Tier/Tag) = Durchschnitt Werte J | C36: =AVERAGE(C32:F32) -> 36.13445378

Sheet Daten (hidden)
Z3: Kombinationen | AF3: Resultate
L4: Klima | T4: Vegetationsbeginn | AF4: Graswachstum | AJ4: Zeitraum
B5: Höhenlage | D5: unter_700 | F5: unter_900 | H5: unter_1100 | J5: über_1100 | L5: tiefgründig | N5: flachgründig | P5: gute_Lage | R5: schlechte_Lage | T5: frisch | V5: trocken | Z5: Höhe | AA5: Boden | AB5: Klima | AC5: Vegetation | AF5: Phase 1 | AG5: Phase 2 | AH5: Phase 3 | AI5: Phase 4 | AJ5: Phase 1 | AK5: Phase 2 | AL5: Phase 3 | AM5: Phase 4
B6: unter_700 | D6: tiefgründig/gute_Lage | F6: tiefgründig | H6: gute_Lage | J6: gute_Lage | L6: frisch | N6: frisch | P6: frisch | R6: frisch | T6: früh | V6: früh | Z6: unter_700 | AA6: tiefgründig/gute_Lage | AB6: frisch | AC6: früh | AD6: =Z6&AA6&AB6&AC6 -> unter_700tiefgründig/gute_Lagefrischfrüh | AF6: 40 | AG6: 90 | AH6: 60 | AI6: 30 | AJ6: 22. Februar | AK6: 8. April | AL6: 22. Mai | AM6: 1. September
B7: unter_900 | D7: flachgründig/schlechte_Lage | F7: flachgründig | H7: schlechte_Lage | J7: schlechte_Lage | L7: trocken | N7: trocken | P7: trocken | R7: trocken | T7: spät | V7: spät | Z7: unter_700 | AA7: tiefgründig/gute_Lage | AB7: frisch | AC7: spät | AD7: =Z7&AA7&AB7&AC7 -> unter_700tiefgründig/gute_Lagefrischspät | AF7: 40 | AG7: 90 | AH7: 60 | AI7: 30 | AJ7: 8. März | AK7: 15. April | AL7: 28. Mai | AM7: 1. September
B8: unter_1100 | Z8: unter_700 | AA8: tiefgründig/gute_Lage | AB8: trocken | AC8: früh | AD8: unter_700tiefgründig/gute_Lagetrockenfrüh | AF8: 30 | AG8: 85 | AH8: 35 | AI8: 25 | AJ8: 22. Februar | AK8: 8. April | AL8: 22. Mai | AM8: 1. September
B9: über_1100 | Z9: unter_700 | AA9: tiefgründig/gute_Lage | AB9: trocken | AC9: spät | AD9: unter_700tiefgründig/gute_Lagetrockenspät | AF9: 30 | AG9: 85 | AH9: 35 | AI9: 25 | AJ9: 8. März | AK9: 15. April | AL9: 28. Mai | AM9: 1. September
Z10: unter_700 | AA10: flachgründig/schlechte_Lage | AB10: frisch | AC10: früh | AD10: unter_700flachgründig/schlechte_Lagefrischfrüh | AF10: 25 | AG10: 75 | AH10: 40 | AI10: 20 | AJ10: 22. Februar | AK10: 8. April | AL10: 22. Mai | AM10: 1. September
Z11: unter_700 | AA11: flachgründig/schlechte_Lage | AB11: frisch | AC11: spät | AD11: unter_700flachgründig/schlechte_Lagefrischspät | AF11: 25 | AG11: 75 | AH11: 40 | AI11: 20 | AJ11: 8. März | AK11: 15. April | AL11: 28. Mai | AM11: 1. September
Z12: unter_700 | AA12: flachgründig/schlechte_Lage | AB12: trocken | AC12: früh | AD12: unter_700flachgründig/schlechte_Lagetrockenfrüh | AF12: 25 | AG12: 70 | AH12: 15 | AI12: 20 | AJ12: 22. Februar | AK12: 8. April | AL12: 22. Mai | AM12: 1. September
Z13: unter_700 | AA13: flachgründig/schlechte_Lage | AB13: trocken | AC13: spät | AD13: unter_700flachgründig/schlechte_Lagetrockenspät | AF13: 25 | AG13: 70 | AH13: 15 | AI13: 20 | AJ13: 8. März | AK13: 15. April | AL13: 28. Mai | AM13: 1. September
Z14: unter_900 | AA14: tiefgründig/gute_Lage | AB14: frisch | AC14: früh | AD14: unter_900tiefgründig/gute_Lagefrischfrüh | AF14: 30 | AG14: 80 | AH14: 50 | AI14: 25 | AJ14: 8. März | AK14: 15. April | AL14: 28. Mai | AM14: 1. September
Z15: unter_900 | AA15: tiefgründig/gute_Lage | AB15: frisch | AC15: spät | AD15: unter_900tiefgründig/gute_Lagefrischspät | AF15: 30 | AG15: 80 | AH15: 50 | AI15: 25 | AJ15: 25. März | AK15: 21. April | AL15: 3. Juni | AM15: 1. September
Z16: unter_900 | AA16: tiefgründig/gute_Lage | AB16: trocken | AC16: früh | AD16: =Z16&AA16&AB16&AC16 -> unter_900tiefgründig/gute_Lagetrockenfrüh | AF16: 25 | AG16: 75 | AH16: 30 | AI16: 20 | AJ16: 8. März | AK16: 15. April | AL16: 28. Mai | AM16: 1. September
Z17: unter_900 | AA17: tiefgründig/gute_Lage | AB17: trocken | AC17: spät | AD17: unter_900tiefgründig/gute_Lagetrockenspät | AF17: 25 | AG17: 75 | AH17: 30 | AI17: 20 | AJ17: 25. März | AK17: 21. April | AL17: 3. Juni | AM17: 1. September
Z18: unter_900 | AA18: flachgründig/schlechte_Lage | AB18: frisch | AC18: früh | AD18: unter_900flachgründig/schlechte_Lagefrischfrüh | AF18: 25 | AG18: 65 | AH18: 35 | AI18: 20 | AJ18: 8. März | AK18: 15. April | AL18: 28. Mai | AM18: 1. September
Z19: unter_900 | AA19: flachgründig/schlechte_Lage | AB19: frisch | AC19: spät | AD19: unter_900flachgründig/schlechte_Lagefrischspät | AF19: 25 | AG19: 65 | AH19: 35 | AI19: 20 | AJ19: 25. März | AK19: 21. April | AL19: 3. Juni | AM19: 1. September
Z20: unter_900 | AA20: flachgründig/schlechte_Lage | AB20: trocken | AC20: früh | AD20: unter_900flachgründig/schlechte_Lagetrockenfrüh | AF20: 20 | AG20: 60 | AH20: 20 | AI20: 15 | AJ20: 8. März | AK20: 15. April | AL20: 28. Mai | AM20: 1. September
Z21: unter_900 | AA21: flachgründig/schlechte_Lage | AB21: trocken | AC21: spät | AD21: unter_900flachgründig/schlechte_Lagetrockenspät | AF21: 20 | AG21: 60 | AH21: 20 | AI21: 15 | AJ21: 25. März | AK21: 21. April | AL21: 3. Juni | AM21: 1. September
Z22: unter_1100 | AA22: tiefgründig/gute_Lage | AB22: frisch | AC22: früh | AD22: unter_1100tiefgründig/gute_Lagefrischfrüh | AF22: 30 | AG22: 70 | AH22: 45 | AI22: 20 | AJ22: 25. März | AK22: 21. April | AL22: 3. Juni | AM22: 22. August
Z23: unter_1100 | AA23: tiefgründig/gute_Lage | AB23: frisch | AC23: spät | AD23: unter_1100tiefgründig/gute_Lagefrischspät | AF23: 30 | AG23: 70 | AH23: 45 | AI23: 20 | AJ23: 8. April | AK23: 27. April | AL23: 9. Juni | AM23: 22. August
Z24: unter_1100 | AA24: tiefgründig/gute_Lage | AB24: trocken | AC24: früh | AD24: unter_1100tiefgründig/gute_Lagetrockenfrüh | AF24: 30 | AG24: 70 | AH24: 45 | AI24: 20 | AJ24: 25. März | AK24: 21. April | AL24: 3. Juni | AM24: 22. August
Z25: unter_1100 | AA25: tiefgründig/gute_Lage | AB25: trocken | AC25: spät | AD25: unter_1100tiefgründig/gute_Lagetrockenspät | AF25: 30 | AG25: 70 | AH25: 45 | AI25: 20 | AJ25: 8. April | AK25: 27. April | AL25: 9. Juni | AM25: 22. August
Z26: unter_1100 | AA26: flachgründig/schlechte_Lage | AB26: frisch | AC26: früh | AD26: unter_1100flachgründig/schlechte_Lagefrischfrüh | AF26: 25 | AG26: 55 | AH26: 30 | AI26: 15 | AJ26: 25. März | AK26: 21. April | AL26: 3. Juni | AM26: 22. August
Z27: unter_1100 | AA27: flachgründig/schlechte_Lage | AB27: frisch | AC27: spät | AD27: unter_1100flachgründig/schlechte_Lagefrischspät | AF27: 25 | AG27: 55 | AH27: 30 | AI27: 15 | AJ27: 8. April | AK27: 27. April | AL27: 9. Juni | AM27: 22. August
Z28: unter_1100 | AA28: flachgründig/schlechte_Lage | AB28: trocken | AC28: früh | AD28: unter_1100flachgründig/schlechte_Lagetrockenfrüh | AF28: 25 | AG28: 55 | AH28: 30 | AI28: 15 | AJ28: 25. März | AK28: 21. April | AL28: 3. Juni | AM28: 22. August
Z29: unter_1100 | AA29: flachgründig/schlechte_Lage | AB29: trocken | AC29: spät | AD29: unter_1100flachgründig/schlechte_Lagetrockenspät | AF29: 25 | AG29: 55 | AH29: 30 | AI29: 15 | AJ29: 8. April | AK29: 27. April | AL29: 9. Juni | AM29: 22. August
Z30: über_1100 | AA30: tiefgründig/gute_Lage | AB30: frisch | AC30: früh | AD30: über_1100tiefgründig/gute_Lagefrischfrüh | AF30: 20 | AG30: 55 | AH30: 35 | AI30: 15 | AJ30: 8. April | AK30: 27. April | AL30: 9. Juni | AM30: 15. August
Z31: über_1100 | AA31: tiefgründig/gute_Lage | AB31: frisch | AC31: spät | AD31: über_1100tiefgründig/gute_Lagefrischspät | AF31: 20 | AG31: 55 | AH31: 35 | AI31: 15 | AJ31: 24. April | AK31: 3. Mai | AL31: 15. Juni | AM31: 15. August
Z32: über_1100 | AA32: tiefgründig/gute_Lage | AB32: trocken | AC32: früh | AD32: über_1100tiefgründig/gute_Lagetrockenfrüh | AF32: 20 | AG32: 55 | AH32: 35 | AI32: 15 | AJ32: 8. April | AK32: 27. April | AL32: 9. Juni | AM32: 15. August
Z33: über_1100 | AA33: tiefgründig/gute_Lage | AB33: trocken | AC33: spät | AD33: über_1100tiefgründig/gute_Lagetrockenspät | AF33: 20 | AG33: 55 | AH33: 35 | AI33: 15 | AJ33: 24. April | AK33: 3. Mai | AL33: 15. Juni | AM33: 15. August
Z34: über_1100 | AA34: flachgründig/schlechte_Lage | AB34: frisch | AC34: früh | AD34: über_1100flachgründig/schlechte_Lagefrischfrüh | AF34: 15 | AG34: 30 | AH34: 25 | AI34: 10 | AJ34: 8. April | AK34: 27. April | AL34: 9. Juni | AM34: 15. August
Z35: über_1100 | AA35: flachgründig/schlechte_Lage | AB35: frisch | AC35: spät | AD35: über_1100flachgründig/schlechte_Lagefrischspät | AF35: 15 | AG35: 30 | AH35: 25 | AI35: 10 | AJ35: 24. April | AK35: 3. Mai | AL35: 15. Juni | AM35: 15. August
Z36: über_1100 | AA36: flachgründig/schlechte_Lage | AB36: trocken | AC36: früh | AD36: über_1100flachgründig/schlechte_Lagetrockenfrüh | AF36: 15 | AG36: 30 | AH36: 25 | AI36: 10 | AJ36: 8. April | AK36: 27. April | AL36: 9. Juni | AM36: 15. August
Z37: über_1100 | AA37: flachgründig/schlechte_Lage | AB37: trocken | AC37: spät | AD37: über_1100flachgründig/schlechte_Lagetrockenspät | AF37: 15 | AG37: 30 | AH37: 25 | AI37: 10 | AJ37: 24. April | AK37: 3. Mai | AL37: 15. Juni | AM37: 15. August
Z44: Tierkategorie | AA44: Verzehr | AB44: min_Besatzzeit | AC44: max_Besatzzeit | AD44: min_Koppel | AE44: max_Koppel | AF44: min_Grösse | AG44: max_Grösse | AH44: min_Grösse_MW | AI44: max_Grösse_MW | AJ44: min_Koppel | AK44: max_Koppel
Z45: Milchkühe | AA45: 14-18 | AB45: 12 Stunden | AC45: 3 Tage | AD45: 0.5 | AE45: 3 | AF45: =Umtriebsweide!D35*Daten!AD45 -> 0.2091503268 | AG45: =Umtriebsweide!D35*Daten!AE45 -> 1.254901961 | AH45: =AVERAGE(Umtriebsweide!C35:F35)*Daten!AD45 -> 0.2405869014 | AI45: =AVERAGE(Umtriebsweide!C35:F35)*Daten!AE45 -> 1.443521409 | AJ45: =AVERAGE(Umtriebsweide!D25:E25)/AD45+1 -> 47 | AK45: =AVERAGE(Umtriebsweide!D25:E25)/AE45+1 -> 8.666666667
Z46: Mutterkühe | AA46: 10-14 | AB46: 2 Tage | AC46: 8 Tage | AD46: 2 | AE46: 8 | AF46: =Umtriebsweide!D35*Daten!AD46 -> 0.8366013072 | AG46: =Umtriebsweide!D35*Daten!AE46 -> 3.346405229 | AH46: =AVERAGE(Umtriebsweide!C35:F35)*Daten!AD46 -> 0.9623476057 | AI46: =AVERAGE(Umtriebsweide!C35:F35)*Daten!AE46 -> 3.849390423 | AJ46: =AVERAGE(Umtriebsweide!D25:E25)/AD46+1 -> 12.5 | AK46: =AVERAGE(Umtriebsweide!D25:E25)/AE46+1 -> 3.875
Z47: Galtkühe | AA47: 11 | AB47: 2 Tage | AC47: 8 Tage | AD47: 2 | AE47: 8 | AF47: =Umtriebsweide!D35*Daten!AD47 -> 0.8366013072 | AG47: =Umtriebsweide!D35*Daten!AE47 -> 3.346405229 | AH47: =AVERAGE(Umtriebsweide!C35:F35)*Daten!AD47 -> 0.9623476057 | AI47: =AVERAGE(Umtriebsweide!C35:F35)*Daten!AE47 -> 3.849390423 | AJ47: =AVERAGE(Umtriebsweide!D25:E25)/AD47+1 -> 12.5 | AK47: =AVERAGE(Umtriebsweide!D25:E25)/AE47+1 -> 3.875
Z48: Ausmastkuh | AA48: 15 | AB48: 2 Tage | AC48: 8 Tage | AD48: 2 | AE48: 8 | AF48: =Umtriebsweide!D35*Daten!AD48 -> 0.8366013072 | AG48: =Umtriebsweide!D35*Daten!AE48 -> 3.346405229 | AH48: =AVERAGE(Umtriebsweide!C35:F35)*Daten!AD48 -> 0.9623476057 | AI48: =AVERAGE(Umtriebsweide!C35:F35)*Daten!AE48 -> 3.849390423 | AJ48: =AVERAGE(Umtriebsweide!D25:E25)/AD48+1 -> 12.5 | AK48: =AVERAGE(Umtriebsweide!D25:E25)/AE48+1 -> 3.875
Z49: Jungvieh über 2-jährig | AA49: 9 | AB49: 2 Tage | AC49: 8 Tage | AD49: 2 | AE49: 8 | AF49: =Umtriebsweide!D35*Daten!AD49 -> 0.8366013072 | AG49: =Umtriebsweide!D35*Daten!AE49 -> 3.346405229 | AH49: =AVERAGE(Umtriebsweide!C35:F35)*Daten!AD49 -> 0.9623476057 | AI49: =AVERAGE(Umtriebsweide!C35:F35)*Daten!AE49 -> 3.849390423 | AJ49: =AVERAGE(Umtriebsweide!D25:E25)/AD49+1 -> 12.5 | AK49: =AVERAGE(Umtriebsweide!D25:E25)/AE49+1 -> 3.875
Z50: Jungvieh 1-2 jährig | AA50: 7 | AB50: 2 Tage | AC50: 8 Tage | AD50: 2 | AE50: 8 | AF50: =Umtriebsweide!D35*Daten!AD50 -> 0.8366013072 | AG50: =Umtriebsweide!D35*Daten!AE50 -> 3.346405229 | AH50: =AVERAGE(Umtriebsweide!C35:F35)*Daten!AD50 -> 0.9623476057 | AI50: =AVERAGE(Umtriebsweide!C35:F35)*Daten!AE50 -> 3.849390423 | AJ50: =AVERAGE(Umtriebsweide!D25:E25)/AD50+1 -> 12.5 | AK50: =AVERAGE(Umtriebsweide!D25:E25)/AE50+1 -> 3.875
Z51: Jungvieh 160-365 Tage | AA51: 5.5 | AB51: 2 Tage | AC51: 8 Tage | AD51: 2 | AE51: 8 | AF51: =Umtriebsweide!D35*Daten!AD51 -> 0.8366013072 | AG51: =Umtriebsweide!D35*Daten!AE51 -> 3.346405229 | AH51: =AVERAGE(Umtriebsweide!C35:F35)*Daten!AD51 -> 0.9623476057 | AI51: =AVERAGE(Umtriebsweide!C35:F35)*Daten!AE51 -> 3.849390423 | AJ51: =AVERAGE(Umtriebsweide!D25:E25)/AD51+1 -> 12.5 | AK51: =AVERAGE(Umtriebsweide!D25:E25)/AE51+1 -> 3.875
Z52: Jungvieh < 160 Tage | AA52: 2 | AB52: 2 Tage | AC52: 8 Tage | AD52: 2 | AE52: 8 | AF52: =Umtriebsweide!D35*Daten!AD52 -> 0.8366013072 | AG52: =Umtriebsweide!D35*Daten!AE52 -> 3.346405229 | AH52: =AVERAGE(Umtriebsweide!C35:F35)*Daten!AD52 -> 0.9623476057 | AI52: =AVERAGE(Umtriebsweide!C35:F35)*Daten!AE52 -> 3.849390423 | AJ52: =AVERAGE(Umtriebsweide!D25:E25)/AD52+1 -> 12.5 | AK52: =AVERAGE(Umtriebsweide!D25:E25)/AE52+1 -> 3.875
Z55: Umrechnung
AE56: Für UW
Z57: Von | AA57: kg TS/ha | AB57: cm_RPM | AC57: Clicks_RPM | AE57: kg_TS_pro_ha | AF57: cm_RPM | AG57: =AE57&AF57 -> kg_TS_pro_hacm_RPM | AH57: =(Umtriebsweide!$J$30 + 767)/120/2 -> 3.210416667
Z58: kg_TS_pro_ha | AA58: cm_RPM | AB58: Clicks_RPM | AC58: cm_RPM | AE58: kg_TS_pro_ha | AF58: Clicks_RPM | AG58: =AE58&AF58 -> kg_TS_pro_haClicks_RPM | AH58: =(Umtriebsweide!$J$30 +767)/120 -> 6.420833333
Z59: cm_RPM | AA59: Clicks_RPM | AB59: kg_TS_pro_ha | AC59: kg_TS_pro_ha | AE59: cm_RPM | AF59: Clicks_RPM | AG59: cm_RPMClicks_RPM | AH59: =2*Umtriebsweide!$J$30 -> 7
Z60: Clicks_RPM | AE60: cm_RPM | AF60: kg_TS_pro_ha | AG60: cm_RPMkg_TS_pro_ha | AH60: =Umtriebsweide!$J$30*2*120 -767 -> 73
AE61: Clicks_RPM | AF61: cm_RPM | AG61: Clicks_RPMcm_RPM | AH61: =0.5*Umtriebsweide!$J$30 -> 1.75
AE62: Clicks_RPM | AF62: kg_TS_pro_ha | AG62: Clicks_RPMkg_TS_pro_ha | AH62: =Umtriebsweide!$J$30*120 - 767 -> -347
Z64: Umrechnung in Futterdichte (kg TS/ha): Anzahl Clicks * 120 -767
AE66: Für KRW
AE67: kg_TS_pro_ha | AF67: cm_RPM | AG67: =AE67&AF67 -> kg_TS_pro_hacm_RPM | AH67: =(Kurzrasenweide!$J$29+767)/120/2 -> 3.2125
AE68: kg_TS_pro_ha | AF68: Clicks_RPM | AG68: =AE68&AF68 -> kg_TS_pro_haClicks_RPM | AH68: =(Kurzrasenweide!$J$29 +767)/120 -> 6.425
AE69: cm_RPM | AF69: Clicks_RPM | AG69: cm_RPMClicks_RPM | AH69: =2*Kurzrasenweide!$J$29 -> 8
AE70: cm_RPM | AF70: kg_TS_pro_ha | AG70: cm_RPMkg_TS_pro_ha | AH70: =Kurzrasenweide!$J$29*2*120 - 767 -> 193
AE71: Clicks_RPM | AF71: cm_RPM | AG71: Clicks_RPMcm_RPM | AH71: =0.5*Kurzrasenweide!$J$29 -> 2
AE72: Clicks_RPM | AF72: kg_TS_pro_ha | AG72: Clicks_RPMkg_TS_pro_ha | AH72: =Kurzrasenweide!$J$29*120 - 767 -> -287
